[Event "FIDE WCCC Open-12 2024"]
[Site "Montesilvano"]
[Date "2024.11.18"]
[Round "1.39"]
[White "Vorobyov, Radmir"]
[Black "Boiko, Nazar"]
[Result "1-0"]
[ECO "C00"]
[WhiteElo "2017"]
[BlackElo "1614"]
[PlyCount "97"]
[EventDate "2024.11.18"]
[EventType "swiss"]
[EventCountry "ITA"]
[TimeControl "5400+30"]

1. e4 {[%emt 0:00:02]} e6 {[%emt 0:00:05]} 2. b3 {[%emt 0:00:13]} d5 {[%emt 0:00:29]} 3. Bb2 {[%emt 0:02:11]} Nf6 {[%emt 0:14:51]} 4. e5 {[%emt 0:05:51]} Nfd7 {[%emt 0:01:37]} 5. c4 {[%emt 0:02:18]} dxc4 {[%emt 0:11:00]} 6. bxc4 {[%emt 0:01:11]} c5 {[%emt 0:03:28]} 7. Nf3 {[%emt 0:03:12]} b6 {[%emt 0:06:07]} 8. Bd3 {[%emt 0:02:52]} Bb7 {[%emt 0:01:53]} 9. O-O {[%emt 0:00:28]} Nc6 {[%emt 0:01:07]} 10. Be4 {[%emt 0:00:31]} Qc7 {[%emt 0:02:24]} 11. Nc3 {[%emt 0:28:59]} a6 {[%emt 0:18:07]} 12. Ne2 {[%emt 0:04:35]} Rb8 {[%emt 0:05:02]} 13. Qa4 {[%emt 0:00:46]} b5 {[%emt 0:09:54]} 14. cxb5 {[%emt 0:18:02]} axb5 {[%emt 0:01:42]} 15. Qc2 {[%emt 0:00:47]} Ncxe5 {[%emt 0:06:29]} 16. Nxe5 {[%emt 0:03:33]} Nxe5 {[%emt 0:00:26]} 17. Rad1 {[%emt 0:04:41]} Nc4 {[%emt 0:01:11]} 18. Ba1 {[%emt 0:00:31]} Na3 {[%emt 0:02:03]} 19. Qd3 {[%emt 0:01:11]} c4 {[%emt 0:01:11]} 20. Qf3 {[%emt 0:00:19]} Bxe4 {[%emt 0:01:05]} 21. Qxe4 {[%emt 0:00:07]} Qb7 {[%emt 0:01:41]} 22. Qe5 {[%emt 0:05:08]} Ra8 {[%emt 0:01:34]} 23. Nf4 {[%emt 0:01:26]} Nc2 {[%emt 0:01:03]} 24. d4 {[%emt 0:07:07]} Nxa1 {[%emt 0:01:26]} 25. Rxa1 {[%emt 0:01:37]} Qb8 {[%emt 0:00:38]} 26. Qg5 {[%emt 0:02:34]} h6 {[%emt 0:00:36]} 27. Qg4 {[%emt 0:00:19]} c3 {[%emt 0:03:47]} 28. Rfe1 {[%emt 0:01:45]} Qd6 {[%emt 0:01:25]} 29. Nxe6 {[%emt 0:01:02]} fxe6 {[%emt 0:00:11]} 30. Rxe6+ {[%emt 0:00:03]} Kd8 {[%emt 0:00:31]} 31. Rxd6+ {[%emt 0:01:22]} Bxd6 {[%emt 0:00:02]} 32. Qe6 {[%emt 0:00:12]} Kc7 {[%emt 0:00:38]} 33. Rc1 {[%emt 0:00:53]} b4 {[%emt 0:01:06]} 34. Qc4+ {[%emt 0:01:04]} Kb6 {[%emt 0:01:24]} 35. Qd5 {[%emt 0:00:14]} Rhd8 {[%emt 0:00:23]} 36. g3 {[%emt 0:00:05]} Ra5 {[%emt 0:01:03]} 37. Qc4 {[%emt 0:00:25]} Rda8 {[%emt 0:00:22]} 38. Rb1 {[%emt 0:00:52]} Rxa2 {[%emt 0:00:47]} 39. Rxb4+ {[%emt 0:00:18]} Bxb4 {[%emt 0:00:03]} 40. Qxb4+ {[%emt 0:00:05]} Kc7 {[%emt 0:00:14]} 41. Qxc3+ {[%emt 0:00:05]} Kd7 {[%emt 0:00:38]} 42. d5 {[%emt 0:00:14]} R2a6 {[%emt 0:00:56]} 43. Qxg7+ {[%emt 0:00:32]} Kd6 {[%emt 0:00:07]} 44. Qxh6+ {[%emt 0:00:34]} Kxd5 {[%emt 0:00:06]} 45. Qg5+ {[%emt 0:00:06]} Kd6 {[%emt 0:00:11]} 46. h4 {[%emt 0:00:10]} Ra2 {[%emt 0:00:16]} 47. h5 {[%emt 0:00:11]} Rc8 {[%emt 0:00:45]} 48. Qf6+ {[%emt 0:00:19]} Kd5 {[%emt 0:00:42]} 49. Qf7+ {[%emt 0:00:06]} 1-0

[Event "FIDE WCCC Open-12 2024"]
[Site "Montesilvano"]
[Date "2024.11.18"]
[Round "1.40"]
[White "Krasniqi, Troi"]
[Black "Stepanyan, Davit"]
[Result "0-1"]
[ECO "C01"]
[WhiteElo "1610"]
[BlackElo "2011"]
[PlyCount "88"]
[EventDate "2024.11.18"]
[EventType "swiss"]
[EventCountry "ITA"]
[TimeControl "5400+30"]

1. e4 {[%emt 0:00:03]} e6 {[%emt 0:00:07]} 2. d4 {[%emt 0:00:04]} d5 {[%emt 0:00:08]} 3. exd5 {[%emt 0:00:09]} exd5 {[%emt 0:00:05]} 4. Bd3 {[%emt 0:00:14]} Nc6 {[%emt 0:00:18]} 5. c3 {[%emt 0:00:10]} Bd6 {[%emt 0:00:12]} 6. Nf3 {[%emt 0:00:12]} Nge7 {[%emt 0:00:07]} 7. O-O {[%emt 0:01:05]} Bg4 {[%emt 0:00:22]} 8. h3 {[%emt 0:01:39]} Bh5 {[%emt 0:00:07]} 9. Nbd2 {[%emt 0:01:01]} Qd7 {[%emt 0:00:21]} 10. b4 {[%emt 0:07:23]} O-O-O {[%emt 0:02:56]} 11. a4 {[%emt 0:10:13]} g5 {[%emt 0:01:56]} 12. Be2 {[%emt 0:40:03]} Rdg8 {[%emt 0:00:58]} 13. Nh2 {[%emt 0:03:52]} Bxe2 {[%emt 0:00:31]} 14. Qxe2 {[%emt 0:00:17]} h5 {[%emt 0:00:16]} 15. Nb3 {[%emt 0:06:06]} Nf5 {[%emt 0:01:16]} 16. Nc5 {[%emt 0:02:27]} Bxc5 {[%emt 0:00:08]} 17. bxc5 {[%emt 0:00:08]} g4 {[%emt 0:01:44]} 18. hxg4 {[%emt 0:04:10]} hxg4 {[%emt 1:27:58]} 19. Nxg4 {[%emt 0:04:41]} Nfxd4 {[%emt 0:00:00]} 20. cxd4 {[%emt 0:03:06]} Nxd4 {[%emt 0:00:00]} 21. Qd1 {[%emt 0:01:52]} Qxg4 {[%emt 0:00:00]} 22. Qxg4+ {[%emt 0:00:36]} Rxg4 {[%emt 0:00:00]} 23. f3 {[%emt 0:00:51]} Rgh4 {[%emt 0:00:00]} 24. Bb2 {[%emt 0:04:28]} Rg8 {[%emt 0:00:00]} 25. Bxd4 {[%emt 0:01:05]} Rxd4 {[%emt 0:00:00]} 26. Rfd1 {[%emt 0:00:15]} Rxd1+ {[%emt 0:00:00]} 27. Rxd1 {[%emt 0:00:14]} c6 {[%emt 0:00:00]} 28. Kf2 {[%emt 0:00:25]} b6 {[%emt 0:00:00]} 29. cxb6 {[%emt 0:00:38]} axb6 {[%emt 0:00:00]} 30. g4 {[%emt 0:00:41]} Kd7 {[%emt 0:00:00]} 31. Rb1 {[%emt 0:01:17]} Kc7 {[%emt 0:00:00]} 32. Ke3 {[%emt 0:00:39]} c5 {[%emt 0:00:00]} 33. Kf4 {[%emt 0:01:16]} Ra8 {[%emt 0:00:00]} 34. Ke5 {[%emt 0:02:03]} d4 {[%emt 0:00:00]} 35. Kf6 {[%emt 0:01:51]} Rxa4 {[%emt 0:00:00]} 36. Kxf7 {[%emt 0:00:20]} d3 {[%emt 0:00:00]} 37. g5 {[%emt 0:02:23]} Rf4+ {[%emt 0:00:00]} 38. Ke6 {[%emt 0:00:19]} Rxf3 {[%emt 0:00:00]} 39. Rg1 {[%emt 0:00:48]} Rf8 {[%emt 0:00:00]} 40. g6 {[%emt 0:00:28]} c4 {[%emt 0:00:00]} 41. Kd5 {[%emt 0:00:27]} b5 {[%emt 0:00:00]} 42. Kd4 {[%emt 0:00:13]} Kb6 {[%emt 0:00:00]} 43. Rg5 {[%emt 0:01:17]} d2 {[%emt 0:00:00]} 44. Rg1 {[%emt 0:00:14]} d1=Q+ {[%emt 0:13:00] Kd3} 0-1

[Event "FIDE WCCC Open-12 2024"]
[Site "Montesilvano"]
[Date "2024.11.18"]
[Round "1.41"]
[White "Wijerathna, Vinuka Dihain"]
[Black "To, Nam Long"]
[Result "1-0"]
[ECO "B07"]
[WhiteElo "2004"]
[BlackElo "1608"]
[PlyCount "89"]
[EventDate "2024.11.18"]
[EventType "swiss"]
[EventCountry "ITA"]
[TimeControl "5400+30"]

1. e4 {[%emt 0:00:03]} d6 {[%emt 0:00:06]} 2. d4 {[%emt 0:00:10]} Nf6 {[%emt 0:01:16]} 3. Bd3 {[%emt 0:00:14]} e5 {[%emt 0:00:30]} 4. c3 {[%emt 0:00:17]} Be7 {[%emt 0:01:23]} 5. Nf3 {[%emt 0:00:51]} Nbd7 {[%emt 0:01:14]} 6. O-O {[%emt 0:00:50]} O-O {[%emt 0:01:37]} 7. Nbd2 {[%emt 0:02:46]} c6 {[%emt 0:03:25]} 8. Re1 {[%emt 0:03:18]} Qc7 {[%emt 0:02:28]} 9. Nf1 {[%emt 0:04:09]} Nb6 {[%emt 0:03:35]} 10. Ng3 {[%emt 0:02:47]} Bg4 {[%emt 0:06:16]} 11. h3 {[%emt 0:01:01]} Bh5 {[%emt 0:01:12]} 12. Nxh5 {[%emt 0:07:47]} Nxh5 {[%emt 0:00:02]} 13. Nxe5 {[%emt 0:04:55]} dxe5 {[%emt 0:02:23]} 14. Qxh5 {[%emt 0:00:10]} exd4 {[%emt 0:01:08]} 15. cxd4 {[%emt 0:00:09]} Rad8 {[%emt 0:01:35]} 16. Be3 {[%emt 0:01:01]} Qd7 {[%emt 0:06:57]} 17. Rad1 {[%emt 0:02:07]} Na4 {[%emt 0:01:53]} 18. Re2 {[%emt 0:08:22]} b5 {[%emt 0:03:15]} 19. Qg4 {[%emt 0:05:05]} Qxg4 {[%emt 0:02:17]} 20. hxg4 {[%emt 0:01:14]} Rfe8 {[%emt 0:01:31]} 21. Rc2 {[%emt 0:03:06]} Rc8 {[%emt 0:03:03]} 22. Rdc1 {[%emt 0:00:48]} Bb4 {[%emt 0:02:18]} 23. Bxb5 {[%emt 0:01:17]} Nc5 {[%emt 0:01:08]} 24. dxc5 {[%emt 0:02:56]} cxb5 {[%emt 0:00:11]} 25. f3 {[%emt 0:00:08]} Rc6 {[%emt 0:00:56]} 26. a3 {[%emt 0:00:49]} Ba5 {[%emt 0:00:08]} 27. Rd1 {[%emt 0:00:41]} h6 {[%emt 0:00:53]} 28. Rd6 {[%emt 0:02:15]} Rec8 {[%emt 0:00:14]} 29. Rxc6 {[%emt 0:00:23]} Rxc6 {[%emt 0:00:09]} 30. b4 {[%emt 0:00:01]} Bc7 {[%emt 0:00:24]} 31. Rd2 {[%emt 0:00:14]} Kh7 {[%emt 0:00:23]} 32. Kf2 {[%emt 0:00:12]} Kg6 {[%emt 0:00:37]} 33. f4 {[%emt 0:00:18]} Kf6 {[%emt 0:00:40]} 34. Kf3 {[%emt 0:00:20]} g5 {[%emt 0:00:51]} 35. g3 {[%emt 0:01:15]} Kg6 {[%emt 0:00:40]} 36. f5+ {[%emt 0:00:23]} Kf6 {[%emt 0:00:42]} 37. Rd7 {[%emt 0:00:22]} Kg7 {[%emt 0:01:18]} 38. Bd4+ {[%emt 0:00:48]} Kf8 {[%emt 0:00:42]} 39. Bb2 {[%emt 0:02:14]} Ke8 {[%emt 0:00:36]} 40. Rd3 {[%emt 0:00:12]} f6 {[%emt 0:00:48]} 41. e5 {[%emt 0:01:44]} fxe5 {[%emt 0:01:07]} 42. Ke4 {[%emt 0:00:07]} Ke7 {[%emt 0:01:10]} 43. Bxe5 {[%emt 0:00:38]} Bxe5 {[%emt 0:00:56]} 44. Kxe5 {[%emt 0:00:06]} Ra6 {[%emt 0:00:11]} 45. f6+ {[%emt 0:00:14]} 1-0

[Event "FIDE WCCC Open-12 2024"]
[Site "Montesilvano"]
[Date "2024.11.18"]
[Round "1.42"]
[White "Mihajlovic, Stefan"]
[Black "Bocquenet-Drouode, Hugo"]
[Result "0-1"]
[ECO "B30"]
[WhiteElo "1594"]
[BlackElo "2002"]
[PlyCount "38"]
[EventDate "2024.11.18"]
[EventType "swiss"]
[EventCountry "ITA"]
[TimeControl "5400+30"]

1. e4 {[%emt 0:00:06]} c5 {[%emt 0:00:05]} 2. Nf3 {[%emt 0:00:30]} Nc6 {[%emt 0:00:06]} 3. Bb5 {[%emt 0:01:37]} e6 {[%emt 0:00:12]} 4. O-O {[%emt 0:02:49]} Nge7 {[%emt 0:00:13]} 5. Re1 {[%emt 0:01:45]} Nd4 {[%emt 0:01:53]} 6. Bf1 {[%emt 0:02:42]} Nec6 {[%emt 0:00:57]} 7. c3 {[%emt 0:02:12]} Nxf3+ {[%emt 0:00:07]} 8. Qxf3 {[%emt 0:01:06]} Be7 {[%emt 0:00:14]} 9. e5 {[%emt 0:02:05]} O-O {[%emt 0:02:10]} 10. Qg4 {[%emt 0:01:47]} f6 {[%emt 0:02:55]} 11. d4 {[%emt 1:19:21]} cxd4 {[%emt 0:09:19]} 12. cxd4 {[%emt 0:00:00]} fxe5 {[%emt 0:01:33]} 13. dxe5 {[%emt 0:00:00]} Qa5 {[%emt 0:02:14]} 14. Qe4 {[%emt 0:00:00]} Bc5 {[%emt 0:00:20]} 15. Re2 {[%emt 0:00:00]} Rf5 {[%emt 0:04:08]} 16. Bf4 {[%emt 0:00:00]} Bd4 {[%emt 0:09:10]} 17. Nd2 {[%emt 0:00:00]} Qb4 {[%emt 0:03:36]} 18. Nb3 {[%emt 0:00:00]} Bxf2+ {[%emt 0:00:53]} 19. Kh1 {[%emt 0:00:00]} Rxf4 {[%emt 0:00:59]} 0-1

[Event "FIDE WCCC Open-12 2024"]
[Site "Montesilvano"]
[Date "2024.11.18"]
[Round "1.43"]
[White "Nguyen, Anh Khoi"]
[Black "Berishvili, Davit"]
[Result "1-0"]
[ECO "E05"]
[WhiteElo "2520"]
[BlackElo "1578"]
[PlyCount "63"]
[EventDate "2024.11.18"]
[EventType "swiss"]
[EventCountry "ITA"]
[TimeControl "5400+30"]

1. d4 {[%emt 0:00:02]} d5 {[%emt 0:00:02]} 2. c4 {[%emt 0:00:06]} e6 {[%emt 0:00:02]} 3. Nf3 {[%emt 0:00:09]} Nf6 {[%emt 0:00:04]} 4. g3 {[%emt 0:00:10]} Be7 {[%emt 0:00:03]} 5. Bg2 {[%emt 0:00:09]} O-O {[%emt 0:00:05]} 6. O-O {[%emt 0:00:11]} dxc4 {[%emt 0:01:18]} 7. Ne5 {[%emt 0:02:44]} c5 {[%emt 0:04:28]} 8. dxc5 {[%emt 0:00:23]} Bxc5 {[%emt 0:00:08]} 9. Qc2 {[%emt 0:06:00]} Qc7 {[%emt 0:04:31]} 10. Nxc4 {[%emt 0:01:17]} Nc6 {[%emt 0:00:34]} 11. Bg5 {[%emt 0:09:45]} Nd5 {[%emt 0:04:23]} 12. Nc3 {[%emt 0:06:56]} Ncb4 {[%emt 0:01:08]} 13. Qb3 {[%emt 0:03:03]} Nxc3 {[%emt 0:03:23]} 14. Qxc3 {[%emt 0:07:18]} f6 {[%emt 0:05:15]} 15. Bd2 {[%emt 0:03:59]} Nc6 {[%emt 0:00:55]} 16. Rac1 {[%emt 0:01:45]} Rd8 {[%emt 0:04:57]} 17. Rfd1 {[%emt 0:02:41]} Bd7 {[%emt 0:03:40]} 18. a3 {[%emt 0:04:22]} e5 {[%emt 0:05:35]} 19. b4 {[%emt 0:06:45]} Bd4 {[%emt 0:00:25]} 20. Qb3 {[%emt 0:05:25]} Be6 {[%emt 0:00:36]} 21. Qa4 {[%emt 0:01:13]} Qf7 {[%emt 0:04:27]} 22. b5 {[%emt 0:01:09]} Ne7 {[%emt 0:05:06]} 23. e3 {[%emt 0:03:16]} Bb6 {[%emt 0:01:13]} 24. Bxb7 {[%emt 0:01:11]} Rab8 {[%emt 0:00:57]} 25. Bf3 {[%emt 0:00:17]} Bc5 {[%emt 0:12:27]} 26. Na5 {[%emt 0:09:21]} Bb6 {[%emt 0:01:31]} 27. Qb4 {[%emt 0:01:00]} Bxa5 {[%emt 0:05:09]} 28. Qxa5 {[%emt 0:00:07]} Bc4 {[%emt 0:01:56]} 29. Bb4 {[%emt 0:02:52]} Re8 {[%emt 0:05:03]} 30. Bxe7 {[%emt 0:01:03]} e4 {[%emt 0:01:57]} 31. Bxe4 {[%emt 0:03:00]} Rxe7 {[%emt 0:00:41]} 32. Rxc4 {[%emt 0:00:32]} 1-0

[Event "FIDE WCCC Open-12 2024"]
[Site "Montesilvano"]
[Date "2024.11.18"]
[Round "1.44"]
[White "Wang, Yu-Chi Xavier"]
[Black "Antipov, Fedor"]
[Result "0-1"]
[ECO "B22"]
[WhiteElo "1543"]
[BlackElo "1991"]
[PlyCount "74"]
[EventDate "2024.11.18"]
[EventType "swiss"]
[EventCountry "ITA"]
[TimeControl "5400+30"]

1. e4 {[%emt 0:00:05]} c5 {[%emt 0:00:17]} 2. c3 {[%emt 0:00:37]} d5 {[%emt 0:00:15]} 3. exd5 {[%emt 0:00:35]} Qxd5 {[%emt 0:00:08]} 4. d4 {[%emt 0:00:31]} Nf6 {[%emt 0:00:40]} 5. Nf3 {[%emt 0:00:50]} e6 {[%emt 0:00:21]} 6. Be2 {[%emt 0:00:36]} cxd4 {[%emt 0:04:37]} 7. cxd4 {[%emt 0:01:27]} Nc6 {[%emt 0:01:30]} 8. Nc3 {[%emt 0:01:39]} Qd6 {[%emt 0:00:58]} 9. h3 {[%emt 0:04:00]} Be7 {[%emt 0:00:29]} 10. Be3 {[%emt 0:02:13]} O-O {[%emt 0:00:40]} 11. O-O {[%emt 0:00:26]} Nb4 {[%emt 0:04:02]} 12. Ne5 {[%emt 0:07:50]} Nbd5 {[%emt 0:02:26]} 13. Nxd5 {[%emt 0:06:16]} Nxd5 {[%emt 0:01:48]} 14. Qd2 {[%emt 0:03:24]} b6 {[%emt 0:03:09]} 15. Rac1 {[%emt 0:05:25]} Bb7 {[%emt 0:00:45]} 16. Rfd1 {[%emt 0:01:30]} Rac8 {[%emt 0:01:02]} 17. f3 {[%emt 0:07:05]} Rfd8 {[%emt 0:08:18]} 18. Bf2 {[%emt 0:01:08]} Qb4 {[%emt 0:07:12]} 19. Qxb4 {[%emt 0:02:35]} Nxb4 {[%emt 0:00:15]} 20. a3 {[%emt 0:01:12]} Nd5 {[%emt 0:01:15]} 21. g3 {[%emt 0:06:38]} h5 {[%emt 0:03:16]} 22. Kh2 {[%emt 0:05:40]} h4 {[%emt 0:12:05]} 23. f4 {[%emt 0:07:08]} hxg3+ {[%emt 0:00:39]} 24. Kxg3 {[%emt 0:00:47]} g5 {[%emt 0:03:54]} 25. Bf3 {[%emt 0:06:25]} f6 {[%emt 0:05:11]} 26. Bxd5 {[%emt 0:04:38]} gxf4+ {[%emt 0:02:20]} 27. Kg4 {[%emt 0:02:47]} Rxd5 {[%emt 0:02:40]} 28. Nd3 {[%emt 0:01:23]} Bd6 {[%emt 0:05:33]} 29. h4 {[%emt 0:02:07]} Kf7 {[%emt 0:00:59]} 30. Rxc8 {[%emt 0:01:18]} Bxc8 {[%emt 0:28:46]} 31. Rc1 {[%emt 0:01:17]} Bd7 {[%emt 0:00:00]} 32. Nb4 {[%emt 0:03:49]} Rb5 {[%emt 0:00:00]} 33. Kf3 {[%emt 0:01:21]} a5 {[%emt 0:00:00]} 34. Nd3 {[%emt 0:00:43]} e5 {[%emt 0:00:00]} 35. dxe5 {[%emt 0:01:35]} fxe5 {[%emt 0:00:00]} 36. Rd1 {[%emt 0:00:42]} Ke7 {[%emt 0:00:00]} 37. Ke4 {[%emt 0:02:01]} Bc6+ {[%emt 0:03:30] Kd4} 0-1

[Event "FIDE WCCC Open-12 2024"]
[Site "Montesilvano"]
[Date "2024.11.18"]
[Round "1.45"]
[White "Radnaev, Leo"]
[Black "Zutautas, Mantas"]
[Result "1-0"]
[ECO "C00"]
[WhiteElo "1990"]
[BlackElo "1540"]
[PlyCount "61"]
[EventDate "2024.11.18"]
[EventType "swiss"]
[EventCountry "ITA"]
[TimeControl "5400+30"]

1. e4 {[%emt 0:00:05]} e6 {[%emt 0:00:05]} 2. Nc3 {[%emt 0:00:08]} d5 {[%emt 0:00:08]} 3. d3 {[%emt 0:00:04]} d4 {[%emt 0:05:26]} 4. Nb1 {[%emt 0:04:10]} c5 {[%emt 0:02:28]} 5. g3 {[%emt 0:01:56]} Nc6 {[%emt 0:01:22]} 6. Bg2 {[%emt 0:01:18]} Nf6 {[%emt 0:01:22]} 7. Ne2 {[%emt 0:00:32]} e5 {[%emt 0:02:07]} 8. O-O {[%emt 0:01:24]} Be7 {[%emt 0:00:31]} 9. h3 {[%emt 0:01:47]} O-O {[%emt 0:01:25]} 10. f4 {[%emt 0:06:03]} Qc7 {[%emt 0:01:28]} 11. f5 {[%emt 0:00:54]} h6 {[%emt 0:03:37]} 12. g4 {[%emt 0:21:10]} Na5 {[%emt 0:09:51]} 13. Qe1 {[%emt 0:57:29]} c4 {[%emt 0:02:05]} 14. Ng3 {[%emt 0:00:00]} b6 {[%emt 0:04:35]} 15. Rf2 {[%emt 0:00:00]} Ba6 {[%emt 0:05:13]} 16. Bf1 {[%emt 0:00:00]} Rac8 {[%emt 0:05:06]} 17. g5 {[%emt 0:00:00]} hxg5 {[%emt 0:01:50]} 18. Bxg5 {[%emt 0:00:00]} cxd3 {[%emt 0:00:28]} 19. cxd3 {[%emt 0:00:00]} Nh7 {[%emt 0:02:31]} 20. Bxe7 {[%emt 0:00:00]} Qxe7 {[%emt 0:00:01]} 21. f6 {[%emt 0:00:00]} Nxf6 {[%emt 0:01:00]} 22. Nf5 {[%emt 0:00:00]} Qe6 {[%emt 0:01:55]} 23. Rg2 {[%emt 0:01:35]} g6 {[%emt 0:02:22]} 24. Qh4 {[%emt 0:02:18]} Nh5 {[%emt 0:00:50]} 25. Qxh5 {[%emt 0:00:42]} Rfd8 {[%emt 0:01:58]} 26. Qh4 {[%emt 0:00:49]} Rd7 {[%emt 0:01:59]} 27. Na3 {[%emt 0:00:37]} Rdc7 {[%emt 0:00:39]} 28. Re1 {[%emt 0:00:51]} Rc1 {[%emt 0:00:40]} 29. Rxc1 {[%emt 0:00:20]} Rxc1 {[%emt 0:00:01]} 30. Qh6 {[%emt 0:00:45]} Qf6 {[%emt 0:00:12]} 31. Qxc1 {[%emt 0:00:07]} 1-0

[Event "FIDE WCCC Open-12 2024"]
[Site "Montesilvano"]
[Date "2024.11.18"]
[Round "1.46"]
[White "Macia Tell, Dario"]
[Black "Gao, Arthur"]
[Result "0-1"]
[ECO "E94"]
[WhiteElo "1520"]
[BlackElo "1979"]
[PlyCount "108"]
[EventDate "2024.11.18"]
[EventType "swiss"]
[EventCountry "ITA"]
[TimeControl "5400+30"]

1. d4 {[%emt 0:00:01]} Nf6 {[%emt 0:00:05]} 2. c4 {[%emt 0:00:04]} g6 {[%emt 0:00:09]} 3. Nc3 {[%emt 0:00:07]} Bg7 {[%emt 0:00:05]} 4. Nf3 {[%emt 0:00:08]} O-O {[%emt 0:00:06]} 5. e4 {[%emt 0:00:06]} d6 {[%emt 0:00:05]} 6. Be2 {[%emt 0:00:07]} e5 {[%emt 0:00:03]} 7. d5 {[%emt 0:00:07]} a5 {[%emt 0:00:31]} 8. O-O {[%emt 0:00:15]} Na6 {[%emt 0:00:32]} 9. Be3 {[%emt 0:00:52]} Nc5 {[%emt 0:14:27]} 10. Qc2 {[%emt 0:00:18]} Ng4 {[%emt 0:01:13]} 11. Bxc5 {[%emt 0:01:37]} dxc5 {[%emt 0:00:05]} 12. h3 {[%emt 0:00:09]} Nh6 {[%emt 0:00:53]} 13. Rfe1 {[%emt 0:03:26]} f5 {[%emt 0:15:58]} 14. Bd3 {[%emt 0:00:45]} f4 {[%emt 0:00:28]} 15. Bf1 {[%emt 0:00:45]} g5 {[%emt 0:07:05]} 16. Rad1 {[%emt 0:00:17]} g4 {[%emt 0:01:21]} 17. hxg4 {[%emt 0:00:05]} Nxg4 {[%emt 0:00:03]} 18. Nh2 {[%emt 0:02:37]} Nxh2 {[%emt 0:01:32]} 19. Kxh2 {[%emt 0:00:06]} Qh4+ {[%emt 0:00:09]} 20. Kg1 {[%emt 0:00:06]} Rf6 {[%emt 0:00:21]} 21. f3 {[%emt 0:00:06]} Rh6 {[%emt 0:00:48]} 22. a3 {[%emt 0:02:48]} Qh2+ {[%emt 0:03:58]} 23. Kf2 {[%emt 0:00:24]} Bf6 {[%emt 0:00:05]} 24. Ke2 {[%emt 0:00:59]} Bh4 {[%emt 0:02:02]} 25. Kd2 {[%emt 0:00:06]} Bxe1+ {[%emt 0:00:29]} 26. Rxe1 {[%emt 0:00:04]} Rg6 {[%emt 0:01:02]} 27. Kc1 {[%emt 0:00:09]} Bd7 {[%emt 0:01:44]} 28. Rd1 {[%emt 0:04:44]} h5 {[%emt 0:06:05]} 29. Na4 {[%emt 0:05:05]} b6 {[%emt 0:03:09]} 30. Nc3 {[%emt 0:00:39]} h4 {[%emt 0:01:36]} 31. Kb1 {[%emt 0:01:56]} h3 {[%emt 0:02:08]} 32. gxh3 {[%emt 0:00:05]} Qxc2+ {[%emt 0:00:05]} 33. Kxc2 {[%emt 0:00:09]} Rg3 {[%emt 0:00:04]} 34. Be2 {[%emt 0:03:23]} Rxh3 {[%emt 0:02:29]} 35. a4 {[%emt 0:01:18]} Kf7 {[%emt 0:00:28]} 36. Nb5 {[%emt 0:00:40]} Bxb5 {[%emt 0:00:49]} 37. cxb5 {[%emt 0:00:08]} Rh2 {[%emt 0:00:11]} 38. Kd2 {[%emt 0:00:38]} Rg8 {[%emt 0:00:09]} 39. b3 {[%emt 0:00:15]} Rgg2 {[%emt 0:00:06]} 40. Re1 {[%emt 0:00:10]} Kf6 {[%emt 0:00:17]} 41. Kd3 {[%emt 0:00:43]} Kg5 {[%emt 0:00:19]} 42. Bd1 {[%emt 0:00:53]} Kh4 {[%emt 0:01:24]} 43. Kc4 {[%emt 0:01:02]} Kg3 {[%emt 0:00:57]} 44. Rf1 {[%emt 0:00:19]} Ra2 {[%emt 0:01:48]} 45. d6 {[%emt 0:00:23]} cxd6 {[%emt 0:00:04]} 46. Kd5 {[%emt 0:00:05]} Rad2+ {[%emt 0:00:23]} 47. Kc6 {[%emt 0:00:08]} Kg2 {[%emt 0:00:03]} 48. Re1 {[%emt 0:00:31]} Kf2 {[%emt 0:00:05]} 49. Re2+ {[%emt 0:00:07]} Rxe2 {[%emt 0:00:08]} 50. Bxe2 {[%emt 0:00:08]} Kxe2 {[%emt 0:00:04]} 51. Kxb6 {[%emt 0:00:05]} Kxf3 {[%emt 0:00:05]} 52. Kc7 {[%emt 0:00:05]} Kxe4 {[%emt 0:00:03]} 53. b6 {[%emt 0:00:13]} f3 {[%emt 0:00:03]} 54. b7 {[%emt 0:00:09]} Rh8 {[%emt 0:00:05]} 0-1

[Event "FIDE WCCC Open-12 2024"]
[Site "Montesilvano"]
[Date "2024.11.18"]
[Round "1.47"]
[White "Platonovs, Nikolajs"]
[Black "Huang, Hao-Xuan"]
[Result "1-0"]
[ECO "C70"]
[WhiteElo "1969"]
[BlackElo "1516"]
[PlyCount "93"]
[EventDate "2024.11.18"]
[EventType "swiss"]
[EventCountry "ITA"]
[TimeControl "5400+30"]

1. e4 {[%emt 0:00:04]} e5 {[%emt 0:00:10]} 2. Nf3 {[%emt 0:00:05]} Nc6 {[%emt 0:00:11]} 3. Bb5 {[%emt 0:00:05]} a6 {[%emt 0:00:44]} 4. Ba4 {[%emt 0:00:06]} Bb4 {[%emt 0:03:14]} 5. O-O {[%emt 0:00:38]} d6 {[%emt 0:03:46]} 6. c3 {[%emt 0:00:33]} Ba5 {[%emt 0:04:10]} 7. d4 {[%emt 0:01:14]} b5 {[%emt 0:01:42]} 8. Bb3 {[%emt 0:02:45]} Bg4 {[%emt 0:02:46]} 9. h3 {[%emt 0:01:12]} Bh5 {[%emt 0:01:16]} 10. d5 {[%emt 0:02:45]} Nce7 {[%emt 0:01:10]} 11. Qd3 {[%emt 0:00:37]} Nf6 {[%emt 0:02:27]} 12. Bg5 {[%emt 0:01:43]} Nd7 {[%emt 0:02:01]} 13. Bc2 {[%emt 0:01:13]} O-O {[%emt 0:01:37]} 14. Nbd2 {[%emt 0:02:27]} Bb6 {[%emt 0:04:51]} 15. Rfe1 {[%emt 0:02:50]} h6 {[%emt 0:07:03]} 16. Bh4 {[%emt 0:02:10]} Rc8 {[%emt 0:05:00]} 17. Nf1 {[%emt 0:03:00]} c5 {[%emt 0:01:29]} 18. dxc6 {[%emt 0:01:24]} Rxc6 {[%emt 0:00:30]} 19. Ng3 {[%emt 0:02:05]} Bg6 {[%emt 0:01:49]} 20. Rad1 {[%emt 0:01:47]} Re8 {[%emt 0:02:20]} 21. Qe2 {[%emt 0:01:17]} Qc7 {[%emt 0:02:52]} 22. Bxe7 {[%emt 0:00:26]} Rxe7 {[%emt 0:00:26]} 23. Nh4 {[%emt 0:00:52]} Bh7 {[%emt 0:02:57]} 24. Nhf5 {[%emt 0:00:19]} Bxf5 {[%emt 0:02:58]} 25. Nxf5 {[%emt 0:00:11]} Re6 {[%emt 0:00:57]} 26. Bb3 {[%emt 0:00:13]} Rf6 {[%emt 0:00:55]} 27. Qg4 {[%emt 0:01:12]} g6 {[%emt 0:08:40]} 28. Kh1 {[%emt 0:00:58]} Kf8 {[%emt 0:02:42]} 29. Nxh6 {[%emt 0:04:06]} Rf4 {[%emt 0:02:22]} 30. Qg5 {[%emt 0:01:28]} Bxf2 {[%emt 0:01:42]} 31. g3 {[%emt 0:05:15]} Rf3 {[%emt 0:02:16]} 32. Rf1 {[%emt 0:01:21]} Qb6 {[%emt 0:03:10]} 33. Ng4 {[%emt 0:02:36]} Ke8 {[%emt 0:03:53]} 34. Qh4 {[%emt 0:02:19]} f5 {[%emt 0:07:44]} 35. Be6 {[%emt 0:03:37]} fxe4 {[%emt 0:02:15]} 36. Bxd7+ {[%emt 0:02:41]} Kxd7 {[%emt 0:00:20]} 37. Nxe5+ {[%emt 0:00:03]} Kc7 {[%emt 0:02:11]} 38. Qe7+ {[%emt 0:00:12]} Kc8 {[%emt 0:01:37]} 39. Qd7+ {[%emt 0:00:03]} Kb8 {[%emt 0:00:14]} 40. Nxc6+ {[%emt 0:00:04]} Qxc6 {[%emt 0:01:01]} 41. Qxc6 {[%emt 0:00:09]} Rf5 {[%emt 0:01:25]} 42. Rxd6 {[%emt 0:00:28]} Rf8 {[%emt 0:01:18]} 43. Rxf2 {[%emt 0:00:14]} Rc8 {[%emt 0:00:55]} 44. Qb6+ {[%emt 0:00:15]} Ka8 {[%emt 0:00:22]} 45. Rf7 {[%emt 0:00:03]} Rc7 {[%emt 0:00:50]} 46. Rd8+ {[%emt 0:00:05]} Rc8 {[%emt 0:00:11]} 47. Qb7# {[%emt 0:00:02]} 1-0